[Event "Dvaro taure"]
[Site "Taujenai, Lithuania"]
[Date "2021.11.28"]
[Round "7.26"]
[White "Mendelis, Mantas"]
[Black "Alejunaite, Milda"]
[Result "1-0"]
[WhiteElo "1021"]
[BlackElo "1171"]
[PlyCount "43"]
[EventDate "2021.??.??"]
[TimeControl "10+5"]
[WhiteClock "0:08:46"]
[BlackClock "0:06:18"]

1. e4 {[%emt 0:00:01]} e5 {[%emt 0:00:05]} 2. Nf3 {[%emt 0:00:00]} Nc6 {[%emt
0:00:02]} 3. Bb5 {[%emt 0:00:00]} a6 {[%emt 0:00:09]} 4. Ba4 {[%emt 0:00:02]}
Nf6 {[%emt 0:00:02]} 5. O-O {[%emt 0:00:04]} d6 {[%emt 0:00:02]} 6. c3 {[%emt
0:00:04]} Nxe4 {[%emt 0:00:02]} 7. Bxc6+ {[%emt 0:00:07]} bxc6 {[%emt 0:00:02]}
8. Re1 {[%emt 0:00:04]} Nf6 {[%emt 0:00:03]} 9. d4 {[%emt 0:00:02]} Be6 {[%emt
0:00:50]} 10. Bg5 {[%emt 0:00:11]} Be7 {[%emt 0:00:17]} 11. dxe5 {[%emt 0:00:
03]} dxe5 {[%emt 0:00:00]} 12. Qxd8+ {[%emt 0:00:08]} Rxd8 {[%emt 0:00:02]} 13.
Nxe5 {[%emt 0:00:07]} h6 {[%emt 0:00:53]} 14. Bh4 {[%emt 0:00:03]} Rd6 {[%emt
0:00:27]} 15. Bg3 {[%emt 0:00:04]} Rd2 {[%emt 0:01:57]} 16. Nxd2 {[%emt 0:01:
06]} O-O {[%emt 0:00:24]} 17. Nxc6 {[%emt 0:00:08]} Bd6 {[%emt 0:00:06]} 18.
Bxd6 {[%emt 0:00:09]} cxd6 {[%emt 0:00:02]} 19. Nb4 {[%emt 0:00:08]} a5 {[%emt
0:00:13]} 20. Nc2 {[%emt 0:00:02]} Bf5 {[%emt 0:00:09]} 21. Nd4 {[%emt 0:00:12]
} Bg6 {[%emt 0:00:04]} 22. Nc4 {[%emt 0:00:14]} 1-0